[Event "*** Titled Tuesday Blitz"]
[Site "Chess.com"]
[Date "2019.11.05"]
[Round "2"]
[White "enriquetejedor"]
[Black "Vuk2000"]
[Result "0-1"]
[WhiteElo "2545"]
[BlackElo "2792"]
[TimeControl "180+2"]
[EndTime "13:26:28 PST"]
[Termination "Vuk2000 won by resignation"]

1. d4 {[%clk 0:02:55.7]} 1... e6 {[%clk 0:03:00.4]} 2. e4 {[%clk 0:02:55.4]}
2... d5 {[%clk 0:03:01.1]} 3. Nc3 {[%clk 0:02:56.6]} 3... Bb4 {[%clk 0:03:01.8]}
4. e5 {[%clk 0:02:56.8]} 4... c5 {[%clk 0:03:02.8]} 5. a3 {[%clk 0:02:57.4]}
5... Bxc3+ {[%clk 0:03:03.9]} 6. bxc3 {[%clk 0:02:59.3]} 6... Ne7 {[%clk
0:03:05.5]} 7. Qg4 {[%clk 0:03:00.3]} 7... Qc7 {[%clk 0:03:06.9]} 8. Qxg7 {[%clk
0:03:00.8]} 8... Rg8 {[%clk 0:03:07.6]} 9. Qxh7 {[%clk 0:03:01.6]} 9... cxd4
{[%clk 0:03:09.1]} 10. Ne2 {[%clk 0:03:03.1]} 10... Nbc6 {[%clk 0:03:10]} 11. f4
{[%clk 0:03:03.4]} 11... Bd7 {[%clk 0:03:09.7]} 12. Qd3 {[%clk 0:03:03]} 12...
dxc3 {[%clk 0:03:10.9]} 13. h4 {[%clk 0:03:03.4]} 13... Nf5 {[%clk 0:03:10.8]}
14. h5 {[%clk 0:03:04.3]} 14... O-O-O {[%clk 0:03:09.2]} 15. h6 {[%clk
0:03:04.8]} 15... Rg6 {[%clk 0:03:09.8]} 16. h7 {[%clk 0:03:05.6]} 16... Rh8
{[%clk 0:03:10.9]} 17. Nxc3 {[%clk 0:03:06.2]} 17... Rg3 {[%clk 0:02:54]} 18.
Qd2 {[%clk 0:03:03]} 18... Nxe5 {[%clk 0:01:48.1]} 19. fxe5 {[%clk 0:03:02.2]}
19... Rxc3 {[%clk 0:01:38.9]} 20. Bd3 {[%clk 0:02:55.8]} 20... Qxe5+ {[%clk
0:01:39.6]} 21. Qe2 {[%clk 0:02:54.8]} 21... Qxe2+ {[%clk 0:01:19]} 22. Bxe2
{[%clk 0:02:53.2]} 22... Rxc2 {[%clk 0:01:19.9]} 23. Bd3 {[%clk 0:02:51.1]}
23... Rxg2 {[%clk 0:01:19.5]} 24. Bxf5 {[%clk 0:02:51.8]} 24... exf5 {[%clk
0:01:20.2]} 25. Bf4 {[%clk 0:02:16.6]} 25... Rg7 {[%clk 0:01:08.6]} 26. O-O-O
{[%clk 0:02:09.9]} 26... Rhxh7 {[%clk 0:01:02.5]} 27. Rxh7 {[%clk 0:02:11.8]}
27... Rxh7 {[%clk 0:01:04.4]} 28. Rxd5 {[%clk 0:02:13]} 28... b6 {[%clk
0:00:59.5]} 29. Rd3 {[%clk 0:02:11.2]} 29... Bc6 {[%clk 0:00:51.7]} 30. Rc3
{[%clk 0:02:11.7]} 30... Kb7 {[%clk 0:00:51.8]} 31. Re3 {[%clk 0:02:11.9]} 31...
Be4 {[%clk 0:00:52.2]} 32. Rg3 {[%clk 0:02:09.6]} 32... a5 {[%clk 0:00:49.4]}
33. Rg8 {[%clk 0:02:08.4]} 33... Rh3 {[%clk 0:00:41.1]} 34. Kb2 {[%clk
0:02:05.4]} 34... Rf3 {[%clk 0:00:41]} 35. Rb8+ {[%clk 0:02:05.3]} 35... Kc6
{[%clk 0:00:41.1]} 36. Rc8+ {[%clk 0:02:03.5]} 36... Kb5 {[%clk 0:00:41.9]} 37.
Bc7 {[%clk 0:02:03.8]} 37... Bd5 {[%clk 0:00:41.2]} 38. Rb8 {[%clk 0:01:54.2]}
38... Kc6 {[%clk 0:00:42.3]} 39. Bd8 {[%clk 0:01:50.8]} 39... Rb3+ {[%clk
0:00:42.5]} 40. Kc2 {[%clk 0:01:51.6]} 40... Rxa3 {[%clk 0:00:29.5]} 41. Rxb6+
{[%clk 0:01:47.8]} 41... Kd7 {[%clk 0:00:30.4]} 42. Bg5 {[%clk 0:01:37.3]} 42...
a4 {[%clk 0:00:26.5]} 43. Bf4 {[%clk 0:01:28.7]} 43... Rf3 {[%clk 0:00:19.7]}
44. Be5 {[%clk 0:01:22.8]} 44... Bb3+ {[%clk 0:00:20.2]} 45. Kb2 {[%clk
0:01:22.1]} 45... Re3 {[%clk 0:00:21.4]} 46. Bf4 {[%clk 0:01:19.9]} 46... Re4
{[%clk 0:00:22.7]} 47. Bc1 {[%clk 0:01:11.9]} 47... Re2+ {[%clk 0:00:16.2]} 48.
Ka3 {[%clk 0:01:10.9]} 48... Rc2 {[%clk 0:00:16.5]} 49. Be3 {[%clk 0:01:07.5]}
49... Rc6 {[%clk 0:00:15.1]} 50. Rb5 {[%clk 0:01:01.4]} 50... Ke6 {[%clk
0:00:15.1]} 51. Bd4 {[%clk 0:01:02.6]} 51... Rc4 {[%clk 0:00:08.7]} 52. Bb2
{[%clk 0:01:02.2]} 52... f4 {[%clk 0:00:09.5]} 53. Re5+ {[%clk 0:01:02.7]} 53...
Kd7 {[%clk 0:00:10.6]} 54. Rf5 {[%clk 0:01:03.4]} 54... Re4 {[%clk 0:00:10.6]}
55. Rf6 {[%clk 0:00:59.9]} 55... Ke7 {[%clk 0:00:06.1]} 56. Rf5 {[%clk
0:01:00.6]} 56... Ke6 {[%clk 0:00:06.4]} 57. Rf6+ {[%clk 0:01:01.3]} 57... Ke7
{[%clk 0:00:07.8]} 58. Rf5 {[%clk 0:01:02.4]} 58... Be6 {[%clk 0:00:09]} 59. Ra5
{[%clk 0:00:59.2]} 59... f3 {[%clk 0:00:09.2]} 60. Ra7+ {[%clk 0:00:58]} 60...
Kd6 {[%clk 0:00:10]} 61. Ra6+ {[%clk 0:00:56.4]} 61... Kd7 {[%clk 0:00:11.4]}
62. Ra7+ {[%clk 0:00:57]} 62... Kc6 {[%clk 0:00:12.8]} 63. Ra6+ {[%clk
0:00:48.2]} 63... Kb5 {[%clk 0:00:13.9]} 64. Rd6 {[%clk 0:00:46]} 64... Re3+
{[%clk 0:00:14.8]} 65. Bc3 {[%clk 0:00:43]} 65... Rxc3+ {[%clk 0:00:15.8]} 66.
Kb2 {[%clk 0:00:43.1]} 66... Rb3+ {[%clk 0:00:17.3]} 67. Ka2 {[%clk 0:00:38.3]}
67... Rd3+ {[%clk 0:00:18.2]} 68. Kb2 {[%clk 0:00:39.7]} 68... a3+ {[%clk
0:00:18.6]} 69. Kc1 {[%clk 0:00:39.1]} 69... Rxd6 {[%clk 0:00:18.7]} 0-1

[Event "*** Titled Tuesday Blitz"]
[Site "Chess.com"]
[Date "2019.11.05"]
[Round "2"]
[White "DinaBelenkaya"]
[Black "SerGo055"]
[Result "1/2-1/2"]
[WhiteElo "2302"]
[BlackElo "2517"]
[TimeControl "180+2"]
[EndTime "13:26:48 PST"]
[Termination "Game drawn - insufficient material"]

1. e4 {[%clk 0:02:59.5]} 1... d5 {[%clk 0:02:56.2]} 2. exd5 {[%clk 0:02:59.7]}
2... Qxd5 {[%clk 0:02:57.6]} 3. Nf3 {[%clk 0:02:57.7]} 3... Nf6 {[%clk
0:02:58.5]} 4. Be2 {[%clk 0:02:53.7]} 4... e5 {[%clk 0:02:58.7]} 5. Nc3 {[%clk
0:02:49.7]} 5... Qa5 {[%clk 0:02:59.2]} 6. O-O {[%clk 0:02:46.2]} 6... e4 {[%clk
0:03:00.3]} 7. Nd4 {[%clk 0:02:45.8]} 7... Qe5 {[%clk 0:03:00.1]} 8. Ndb5 {[%clk
0:02:31.3]} 8... a6 {[%clk 0:02:51]} 9. d4 {[%clk 0:02:23.3]} 9... Qe7 {[%clk
0:02:41.4]} 10. Na3 {[%clk 0:02:22]} 10... b5 {[%clk 0:02:34.7]} 11. Re1 {[%clk
0:02:03.8]} 11... Bb7 {[%clk 0:02:27.5]} 12. Bg5 {[%clk 0:01:45.5]} 12... Nbd7
{[%clk 0:01:50.3]} 13. Bf3 {[%clk 0:01:38.1]} 13... Qe6 {[%clk 0:01:34.5]} 14.
Nxe4 {[%clk 0:01:35.9]} 14... Nxe4 {[%clk 0:01:32.9]} 15. Bxe4 {[%clk
0:01:08.2]} 15... Bxe4 {[%clk 0:01:31.7]} 16. f3 {[%clk 0:01:00.6]} 16... Nf6
{[%clk 0:01:10.3]} 17. Bxf6 {[%clk 0:00:56.3]} 17... Qxf6 {[%clk 0:01:10.8]} 18.
Rxe4+ {[%clk 0:00:57.5]} 18... Kd7 {[%clk 0:01:11.1]} 19. Qd3 {[%clk 0:00:49.9]}
19... Bd6 {[%clk 0:01:04.5]} 20. Rae1 {[%clk 0:00:44.3]} 20... Qh6 {[%clk
0:00:48.4]} 21. g3 {[%clk 0:00:38.1]} 21... Rhe8 {[%clk 0:00:45.6]} 22. c4
{[%clk 0:00:17.9]} 22... Bxa3 {[%clk 0:00:37.1]} 23. bxa3 {[%clk 0:00:17.4]}
23... Rxe4 {[%clk 0:00:32.5]} 24. Qxe4 {[%clk 0:00:18.2]} 24... Rd8 {[%clk
0:00:21]} 25. Qf5+ {[%clk 0:00:18.2]} 25... Kc6 {[%clk 0:00:19]} 26. cxb5+
{[%clk 0:00:17.2]} 26... axb5 {[%clk 0:00:17]} 27. Qc5+ {[%clk 0:00:18.1]} 27...
Kb7 {[%clk 0:00:17.1]} 28. Qxb5+ {[%clk 0:00:20]} 28... Qb6 {[%clk 0:00:18.3]}
29. Qxb6+ {[%clk 0:00:18.3]} 29... Kxb6 {[%clk 0:00:20]} 30. Re7 {[%clk
0:00:19.9]} 30... Rxd4 {[%clk 0:00:20.4]} 31. Rxf7 {[%clk 0:00:21.2]} 31... c5
{[%clk 0:00:21.6]} 32. Rxg7 {[%clk 0:00:22]} 32... c4 {[%clk 0:00:23.2]} 33. Rg8
{[%clk 0:00:20.4]} 33... Kb7 {[%clk 0:00:17.7]} 34. Rg7+ {[%clk 0:00:20.8]}
34... Kb6 {[%clk 0:00:18.8]} 35. a4 {[%clk 0:00:20.7]} 35... c3 {[%clk
0:00:19.7]} 36. a5+ {[%clk 0:00:21.8]} 36... Kb5 {[%clk 0:00:19.2]} 37. Rb7+
{[%clk 0:00:19.7]} 37... Kxa5 {[%clk 0:00:17.7]} 38. Rc7 {[%clk 0:00:19.7]}
38... Kb4 {[%clk 0:00:19]} 39. Kf2 {[%clk 0:00:20.2]} 39... Rd2+ {[%clk
0:00:18.9]} 40. Ke3 {[%clk 0:00:20.7]} 40... Rxa2 {[%clk 0:00:19.6]} 41. Rxh7
{[%clk 0:00:17.1]} 41... Kb3 {[%clk 0:00:14.4]} 42. Rb7+ {[%clk 0:00:18]} 42...
Kc2 {[%clk 0:00:14.7]} 43. h4 {[%clk 0:00:19.2]} 43... Kd1 {[%clk 0:00:15.7]}
44. Rd7+ {[%clk 0:00:16.4]} 44... Rd2 {[%clk 0:00:15.8]} 45. Rc7 {[%clk
0:00:16.7]} 45... c2 {[%clk 0:00:17.2]} 46. g4 {[%clk 0:00:17]} 46... Rh2 {[%clk
0:00:13.3]} 47. h5 {[%clk 0:00:17]} 47... c1=Q+ {[%clk 0:00:14.7]} 48. Rxc1+
{[%clk 0:00:17.1]} 48... Kxc1 {[%clk 0:00:16.6]} 49. f4 {[%clk 0:00:15.2]} 49...
Rh4 {[%clk 0:00:11.5]} 50. Kf3 {[%clk 0:00:15.3]} 50... Kd2 {[%clk 0:00:11.7]}
51. f5 {[%clk 0:00:15.9]} 51... Rh1 {[%clk 0:00:11.8]} 52. Kf4 {[%clk
0:00:08.4]} 52... Kd3 {[%clk 0:00:11.3]} 53. f6 {[%clk 0:00:09.4]} 53... Kd4
{[%clk 0:00:11.8]} 54. Kf5 {[%clk 0:00:09]} 54... Kd5 {[%clk 0:00:11.1]} 55. f7
{[%clk 0:00:06.5]} 55... Rf1+ {[%clk 0:00:11.4]} 56. Kg6 {[%clk 0:00:07.2]}
56... Ke6 {[%clk 0:00:13.3]} 57. g5 {[%clk 0:00:06.5]} 57... Rxf7 {[%clk
0:00:12.9]} 58. h6 {[%clk 0:00:07.7]} 58... Rf8 {[%clk 0:00:09.5]} 59. Kg7
{[%clk 0:00:07.4]} 59... Rc8 {[%clk 0:00:07.7]} 60. g6 {[%clk 0:00:05.9]} 60...
Rc7+ {[%clk 0:00:06.7]} 61. Kg8 {[%clk 0:00:06.5]} 61... Kf6 {[%clk 0:00:06.9]}
62. g7 {[%clk 0:00:05.5]} 62... Kg6 {[%clk 0:00:04]} 63. Kh8 {[%clk 0:00:04.4]}
63... Rc8+ {[%clk 0:00:05.2]} 64. g8=Q+ {[%clk 0:00:05.5]} 64... Rxg8+ {[%clk
0:00:06.7]} 65. Kxg8 {[%clk 0:00:06.8]} 65... Kxh6 {[%clk 0:00:08.6]} 1/2-1/2

[Event "*** Titled Tuesday Blitz"]
[Site "Chess.com"]
[Date "2019.11.05"]
[Round "2"]
[White "FelixJoseYnojosa"]
[Black "GM_dmitrij"]
[Result "1/2-1/2"]
[WhiteElo "2630"]
[BlackElo "2927"]
[TimeControl "180+2"]
[EndTime "13:26:59 PST"]
[Termination "Game drawn - insufficient material"]

1. c4 {[%clk 0:03:01.9]} 1... e5 {[%clk 0:03:00.4]} 2. Nc3 {[%clk 0:03:03.1]}
2... Bb4 {[%clk 0:03:01]} 3. e3 {[%clk 0:03:01.6]} 3... Bxc3 {[%clk 0:02:58.5]}
4. bxc3 {[%clk 0:03:03]} 4... d6 {[%clk 0:02:57.3]} 5. d4 {[%clk 0:03:03.6]}
5... Nc6 {[%clk 0:02:57.6]} 6. Ne2 {[%clk 0:03:01.8]} 6... f5 {[%clk 0:02:55]}
7. Ng3 {[%clk 0:03:02.8]} 7... Nf6 {[%clk 0:02:53.8]} 8. Be2 {[%clk 0:03:03.8]}
8... O-O {[%clk 0:02:53.9]} 9. O-O {[%clk 0:03:04.9]} 9... Qe8 {[%clk 0:02:50]}
10. f4 {[%clk 0:03:00.3]} 10... e4 {[%clk 0:02:41.8]} 11. d5 {[%clk 0:02:38.5]}
11... Na5 {[%clk 0:02:34.3]} 12. c5 {[%clk 0:02:39.6]} 12... dxc5 {[%clk
0:02:32.5]} 13. c4 {[%clk 0:02:41.2]} 13... b6 {[%clk 0:02:19.9]} 14. Bb2 {[%clk
0:02:40.6]} 14... Nb7 {[%clk 0:02:20.2]} 15. Qc2 {[%clk 0:02:26.5]} 15... Nd6
{[%clk 0:02:20.3]} 16. Nh1 {[%clk 0:02:27.8]} 16... Bd7 {[%clk 0:02:09.6]} 17.
Nf2 {[%clk 0:02:24.8]} 17... b5 {[%clk 0:02:06.1]} 18. cxb5 {[%clk 0:02:22.9]}
18... Bxb5 {[%clk 0:02:08]} 19. Bxf6 {[%clk 0:01:03.6]} 19... Rxf6 {[%clk
0:02:08.4]} 20. Rac1 {[%clk 0:01:05]} 20... Bxe2 {[%clk 0:01:44.9]} 21. Qxe2
{[%clk 0:01:06.4]} 21... c4 {[%clk 0:01:46.8]} 22. g4 {[%clk 0:01:05]} 22... Qb5
{[%clk 0:01:22.2]} 23. Rfd1 {[%clk 0:01:01.5]} 23... Qc5 {[%clk 0:01:10.8]} 24.
Rd4 {[%clk 0:00:54.8]} 24... Rb8 {[%clk 0:01:05.8]} 25. gxf5 {[%clk 0:00:55]}
25... Nxf5 {[%clk 0:00:55.7]} 26. Qxc4 {[%clk 0:00:24.9]} 26... Qxc4 {[%clk
0:00:41.5]} 27. Rdxc4 {[%clk 0:00:26.5]} 27... Nxe3 {[%clk 0:00:43.4]} 28. Rxc7
{[%clk 0:00:25.8]} 28... Nxd5 {[%clk 0:00:44.8]} 29. Rxa7 {[%clk 0:00:26]} 29...
e3 {[%clk 0:00:38.8]} 30. Nd3 {[%clk 0:00:19.6]} 30... Nxf4 {[%clk 0:00:24.2]}
31. Nxf4 {[%clk 0:00:19.2]} 31... Rxf4 {[%clk 0:00:26.1]} 32. Re7 {[%clk
0:00:19.6]} 32... Rf2 {[%clk 0:00:22.8]} 33. a3 {[%clk 0:00:13.6]} 33... h6
{[%clk 0:00:20.1]} 34. Rxe3 {[%clk 0:00:13.6]} 34... Rbb2 {[%clk 0:00:21.5]} 35.
h3 {[%clk 0:00:14.5]} 35... Rg2+ {[%clk 0:00:22.2]} 36. Kh1 {[%clk 0:00:15.7]}
36... Rh2+ {[%clk 0:00:24.1]} 37. Kg1 {[%clk 0:00:17.1]} 37... Rbg2+ {[%clk
0:00:25.8]} 38. Kf1 {[%clk 0:00:18]} 38... Ra2 {[%clk 0:00:27.7]} 39. Kg1 {[%clk
0:00:14]} 39... Kh7 {[%clk 0:00:28.3]} 40. Rg3 {[%clk 0:00:14.2]} 40... g5
{[%clk 0:00:28.7]} 41. Rc7+ {[%clk 0:00:14.2]} 41... Kg6 {[%clk 0:00:29.4]} 42.
Rc1 {[%clk 0:00:15.5]} 42... Kh5 {[%clk 0:00:28.9]} 43. Rb3 {[%clk 0:00:11.2]}
43... Rhd2 {[%clk 0:00:25.8]} 44. Re1 {[%clk 0:00:07.7]} 44... Rg2+ {[%clk
0:00:26.4]} 45. Kh1 {[%clk 0:00:08.6]} 45... Rh2+ {[%clk 0:00:28.3]} 46. Kg1
{[%clk 0:00:10]} 46... Rhg2+ {[%clk 0:00:25.3]} 47. Kh1 {[%clk 0:00:10.5]} 47...
Rgc2 {[%clk 0:00:27.2]} 48. Rd1 {[%clk 0:00:11.3]} 48... Rc4 {[%clk 0:00:25.6]}
49. Kg1 {[%clk 0:00:11.9]} 49... Kh4 {[%clk 0:00:25.6]} 50. Kh1 {[%clk
0:00:13.4]} 50... Ra4 {[%clk 0:00:23.1]} 51. Rdd3 {[%clk 0:00:14.4]} 51... Kh5
{[%clk 0:00:17.6]} 52. Kg1 {[%clk 0:00:14]} 52... Rf4 {[%clk 0:00:18.2]} 53. Rd1
{[%clk 0:00:14.8]} 53... Rff2 {[%clk 0:00:19]} 54. Kh1 {[%clk 0:00:15.5]} 54...
Rfe2 {[%clk 0:00:19.8]} 55. Kg1 {[%clk 0:00:15.8]} 55... Rac2 {[%clk 0:00:20.6]}
56. Ra1 {[%clk 0:00:15.3]} 56... Rg2+ {[%clk 0:00:20.4]} 57. Kh1 {[%clk
0:00:16]} 57... Rh2+ {[%clk 0:00:22.3]} 58. Kg1 {[%clk 0:00:17.4]} 58... Rhg2+
{[%clk 0:00:22.6]} 59. Kh1 {[%clk 0:00:18.8]} 59... Ra2 {[%clk 0:00:21.1]} 60.
Rc1 {[%clk 0:00:15.7]} 60... Rge2 {[%clk 0:00:21]} 61. Rd1 {[%clk 0:00:15.9]}
61... Re4 {[%clk 0:00:18.5]} 62. Rc1 {[%clk 0:00:16.9]} 62... Kh4 {[%clk
0:00:18.5]} 63. Rd1 {[%clk 0:00:17]} 63... h5 {[%clk 0:00:19.4]} 64. Kg1 {[%clk
0:00:10.5]} 64... Ra4 {[%clk 0:00:15.7]} 65. Rdd3 {[%clk 0:00:10.4]} 65... Rc4
{[%clk 0:00:17.1]} 66. Rd1 {[%clk 0:00:10.6]} 66... Re4 {[%clk 0:00:16.5]} 67.
Rc1 {[%clk 0:00:10.5]} 67... g4 {[%clk 0:00:17.6]} 68. hxg4 {[%clk 0:00:11.4]}
68... hxg4 {[%clk 0:00:19.5]} 69. Rd1 {[%clk 0:00:07.7]} 69... g3 {[%clk
0:00:20]} 70. Rc1 {[%clk 0:00:08.2]} 70... Kh3 {[%clk 0:00:20.5]} 71. Rb8 {[%clk
0:00:08.5]} 71... Ree2 {[%clk 0:00:19.9]} 72. Rh8+ {[%clk 0:00:08.8]} 72... Kg4
{[%clk 0:00:21.5]} 73. Rg8+ {[%clk 0:00:10.2]} 73... Kf4 {[%clk 0:00:22.9]} 74.
Rf8+ {[%clk 0:00:11.6]} 74... Kg4 {[%clk 0:00:21]} 75. Rg8+ {[%clk 0:00:12.8]}
75... Kf3 {[%clk 0:00:21.1]} 76. Rf8+ {[%clk 0:00:14.1]} 76... Ke3 {[%clk
0:00:22.1]} 77. Re8+ {[%clk 0:00:15.4]} 77... Kf3 {[%clk 0:00:22.1]} 78. Rxe2
{[%clk 0:00:16.8]} 78... Kxe2 {[%clk 0:00:23]} 79. Kg2 {[%clk 0:00:15.2]} 79...
Kd2 {[%clk 0:00:22.8]} 80. Rc7 {[%clk 0:00:15.6]} 80... Rxa3 {[%clk 0:00:21.7]}
81. Rg7 {[%clk 0:00:16.5]} 81... Ke2 {[%clk 0:00:23.2]} 82. Rxg3 {[%clk
0:00:17.5]} 82... Rxg3+ {[%clk 0:00:25.1]} 83. Kxg3 {[%clk 0:00:18.4]} 1/2-1/2

[Event "*** Titled Tuesday Blitz"]
[Site "Chess.com"]
[Date "2019.11.05"]
[Round "2"]
[White "Heineccius"]
[Black "platy3"]
[Result "0-1"]
[WhiteElo "2603"]
[BlackElo "2904"]
[TimeControl "180+2"]
[EndTime "13:27:05 PST"]
[Termination "platy3 won by resignation"]

1. d4 {[%clk 0:03:01.9]} 1... Nf6 {[%clk 0:03:00.9]} 2. c4 {[%clk 0:03:03.4]}
2... e6 {[%clk 0:03:02.2]} 3. Nc3 {[%clk 0:03:03.5]} 3... Bb4 {[%clk 0:03:03.1]}
4. g3 {[%clk 0:03:03.5]} 4... O-O {[%clk 0:03:03.6]} 5. Bg2 {[%clk 0:03:04.4]}
5... d5 {[%clk 0:03:05.3]} 6. Nf3 {[%clk 0:03:04.9]} 6... b6 {[%clk 0:03:02.6]}
7. O-O {[%clk 0:03:05]} 7... Bb7 {[%clk 0:03:04]} 8. Qb3 {[%clk 0:03:00.8]} 8...
a5 {[%clk 0:03:03]} 9. a3 {[%clk 0:02:59.7]} 9... Bxc3 {[%clk 0:02:51.9]} 10.
Qxc3 {[%clk 0:03:01]} 10... dxc4 {[%clk 0:02:53.1]} 11. Qxc4 {[%clk 0:03:00.1]}
11... Bd5 {[%clk 0:02:54.3]} 12. Qc2 {[%clk 0:02:57.7]} 12... Be4 {[%clk
0:02:54.9]} 13. Qc3 {[%clk 0:02:49.1]} 13... Nbd7 {[%clk 0:02:44.7]} 14. Bf4
{[%clk 0:02:39.8]} 14... Nd5 {[%clk 0:02:44.7]} 15. Qd2 {[%clk 0:02:40.2]} 15...
Nxf4 {[%clk 0:02:39.4]} 16. Qxf4 {[%clk 0:02:41.2]} 16... Nf6 {[%clk 0:02:40.8]}
17. Rac1 {[%clk 0:02:41.3]} 17... Rc8 {[%clk 0:02:42.3]} 18. Rfd1 {[%clk
0:02:34.9]} 18... Qd6 {[%clk 0:02:39.6]} 19. Ne5 {[%clk 0:02:32.7]} 19... Bxg2
{[%clk 0:02:38.4]} 20. Kxg2 {[%clk 0:02:33.5]} 20... Rfd8 {[%clk 0:02:33.1]} 21.
Nc6 {[%clk 0:02:29.1]} 21... Qxf4 {[%clk 0:02:27.9]} 22. gxf4 {[%clk 0:02:27.8]}
22... Rd7 {[%clk 0:02:29.4]} 23. Rc2 {[%clk 0:02:21.3]} 23... Nd5 {[%clk
0:02:21.6]} 24. e3 {[%clk 0:02:21.6]} 24... f6 {[%clk 0:02:20.5]} 25. Rdc1
{[%clk 0:02:21.2]} 25... Kf7 {[%clk 0:02:19.1]} 26. Kf3 {[%clk 0:02:21.5]} 26...
Ke8 {[%clk 0:02:07.9]} 27. Na7 {[%clk 0:02:21.5]} 27... Ra8 {[%clk 0:02:05.6]}
28. Nb5 {[%clk 0:02:21.2]} 28... Rc8 {[%clk 0:01:50]} 29. e4 {[%clk 0:02:19.2]}
29... Ne7 {[%clk 0:01:50.9]} 30. Nxc7+ {[%clk 0:02:03.7]} 30... Kf7 {[%clk
0:01:51]} 31. Nb5 {[%clk 0:02:04.6]} 31... Rxc2 {[%clk 0:01:39]} 32. Rxc2 {[%clk
0:02:05.6]} 32... h6 {[%clk 0:01:40]} 33. Ke3 {[%clk 0:02:05.2]} 33... f5 {[%clk
0:01:29.1]} 34. f3 {[%clk 0:02:04.9]} 34... Ke8 {[%clk 0:01:22.5]} 35. b4 {[%clk
0:01:46.8]} 35... axb4 {[%clk 0:01:18.8]} 36. axb4 {[%clk 0:01:48.2]} 36... Kd8
{[%clk 0:01:20.4]} 37. Ra2 {[%clk 0:01:48.5]} 37... Nc6 {[%clk 0:01:21.8]} 38.
Ra8+ {[%clk 0:01:46.6]} 38... Ke7 {[%clk 0:01:21.8]} 39. e5 {[%clk 0:01:00.1]}
39... Nxb4 {[%clk 0:01:22.2]} 40. Nd6 {[%clk 0:00:59.4]} 40... Nd5+ {[%clk
0:01:22.1]} 41. Kd2 {[%clk 0:00:55.6]} 41... Rd8 {[%clk 0:01:18]} 42. Ra7+
{[%clk 0:00:36.8]} 42... Kf8 {[%clk 0:01:18.9]} 43. Kd3 {[%clk 0:00:31.8]} 43...
Nxf4+ {[%clk 0:01:19.2]} 44. Kc4 {[%clk 0:00:32.8]} 44... Nd5 {[%clk 0:01:19.2]}
45. Kb5 {[%clk 0:00:32.2]} 45... Kg8 {[%clk 0:01:16.6]} 46. Kc6 {[%clk
0:00:30.8]} 46... Rf8 {[%clk 0:01:14.7]} 47. Kd7 {[%clk 0:00:27.4]} 47... Nf4
{[%clk 0:01:16.1]} 48. Rb7 {[%clk 0:00:22.6]} 48... g5 {[%clk 0:01:17.2]} 49.
Rxb6 {[%clk 0:00:22.6]} 49... g4 {[%clk 0:01:18.7]} 50. fxg4 {[%clk 0:00:22.1]}
50... fxg4 {[%clk 0:01:20.6]} 51. Rb3 {[%clk 0:00:23.5]} 51... Kg7 {[%clk
0:01:18.8]} 52. Ne8+ {[%clk 0:00:24.8]} 52... Kg6 {[%clk 0:01:18.2]} 53. Nf6
{[%clk 0:00:26.4]} 53... h5 {[%clk 0:01:16.1]} 54. Ke7 {[%clk 0:00:27.6]} 54...
Rf7+ {[%clk 0:01:17.2]} 55. Ke8 {[%clk 0:00:29.1]} 55... Ra7 {[%clk 0:01:16.8]}
56. Kf8 {[%clk 0:00:28.6]} 56... Ra4 {[%clk 0:01:15.5]} 57. d5 {[%clk
0:00:27.2]} 57... exd5 {[%clk 0:01:16.5]} 58. Rb6 {[%clk 0:00:26.5]} 58... Kf5
{[%clk 0:01:16.3]} 59. Nd7 {[%clk 0:00:25.7]} 59... h4 {[%clk 0:01:09.1]} 60.
Rf6+ {[%clk 0:00:27.1]} 60... Kg5 {[%clk 0:01:10.2]} 61. e6 {[%clk 0:00:28]}
61... Ra6 {[%clk 0:00:46.6]} 62. Kf7 {[%clk 0:00:22.7]} 62... Rxe6 {[%clk
0:00:24.1]} 63. Rxe6 {[%clk 0:00:22.6]} 63... Nxe6 {[%clk 0:00:26]} 64. Kxe6
{[%clk 0:00:24.1]} 64... Kf4 {[%clk 0:00:20.4]} 65. Nf6 {[%clk 0:00:21.5]} 65...
d4 {[%clk 0:00:18.7]} 66. Nd5+ {[%clk 0:00:19.3]} 66... Kf3 {[%clk 0:00:19.4]}
67. Ke5 {[%clk 0:00:17.6]} 67... d3 {[%clk 0:00:20.4]} 68. Kd4 {[%clk
0:00:17.4]} 68... g3 {[%clk 0:00:08.8]} 69. hxg3 {[%clk 0:00:18.5]} 69... hxg3
{[%clk 0:00:07.9]} 70. Ne3 {[%clk 0:00:17.4]} 70... d2 {[%clk 0:00:08.5]} 71.
Kd3 {[%clk 0:00:17.8]} 71... g2 {[%clk 0:00:07.7]} 0-1